[Event "10th Menchik Memorial 2025"]
[Site "London"]
[Date "2025.03.20"]
[Round "1.5"]
[White "Sliwicka, Alicja"]
[Black "Hunt, Harriet V"]
[Result "1-0"]
[Annotator "TA"]
[ECO "B28"]
[WhiteElo "2342"]
[BlackElo "2296"]
[PlyCount "75"]
[EventDate "2025.03.11"]
[EventType "tourn"]
[EventCountry "ENG"]
[SourceTitle "playchess.com"]
[Source "ChessBase"]
[SourceQuality "1"]
[TimeControl "5400+30"]

{[%evp 10,75,21,27,30,0,0,-31,-37,-48,-13,-36,31,26,35,0,28,0,10,0,14,15,25,0,0,0,0,0,0,0,-6,-11,0,-23,75,66,87,85,188,181,198,198,258,248,236,216,216,218,504,506,440,477,531,518,505,509,645,635,816,792,784,762,841,787,826,780,1291,1264]} 1. e4 {[%emt 0:00:04]} c5 {[%emt 0:03:04]} 2. Nf3 {[%emt 0:00:09]} a6 {[%emt 0:00:11]} 3. c3 {[%emt 0:02:56]} e6 {[%emt 0:00:45]} 4. d4 {[%emt 0:01:20]} d5 {[%emt 0:00:14]} 5. e5 {[%emt 0:03:38]} Bd7 {[%emt 0:01:46]} 6. Bd3 {[%emt 0:04:05]} Nc6 {[%emt 0:07:39] B28: Sicilian: 2 Nf3 a6 (O'Kelly Variation).} 7. O-O {[%emt 0:01:02]} cxd4 {[%emt 0:01:38]} 8. Re1 {[%emt 0:00:09]} dxc3 {[%emt 0:15:07] Black is slightly better.} 9. Nxc3 {[%emt 0:00:10]} Be7 {[%emt 0:01:12]} 10. Be3 $146 {[%emt 0:05:47]} (10. a3 g5 11. b4 g4 12. Nd2 h5 13. Bb2 Rh6 14. Nb3 Kf8 15. Ne2 f6 16. Nf4 Nxe5 17. Bxe5 fxe5 {1-0 Carlstrom,N (2095)-Ziegler,A (2327) Deltalift op 2022 (7)}) 10... Qa5 {[%emt 0:12:16]} ({Black should try} 10... g5 $15) 11. a3 {[%emt 0:02:02][%mdl 1024] White has compensation.} Rc8 {[%emt 0:08:31]} 12. Ne2 {[%emt 0:05:42]} h5 {[%emt 0:08:01]} 13. Ned4 {[%emt 0:03:06]} Nh6 {[%emt 0:09:33]} 14. h3 {[%emt 0:00:53]} Nxd4 {[%emt 0:03:18]} 15. Nxd4 {[%emt 0:01:36] A sharp opening} g6 {[%emt 0:00:36]} 16. b4 {[%emt 0:03:50] White sacrificed a pawn} Qd8 {[%emt 0:01:09]} 17. Qd2 {[%emt 0:02:55]} Nf5 {[%emt 0:00:58]} 18. Nxf5 {[%emt 0:08:25]} gxf5 {[%emt 0:00:49]} 19. a4 {[%emt 0:00:18] Wards off Bb5} d4 {[%emt 0:07:47]} 20. Bf4 {[%emt 0:03:26]} Rc3 {[%emt 0:01:31]} 21. Bf1 {[%emt 0:05:30]} Qb6 {[%emt 0:03:30] [#]} (21... Rb3 $11 {remains equal.} 22. b5 axb5 23. axb5 Bxb5) 22. b5 $1 $16 {[%emt 0:05:49] Black is now going downhill.} Bc5 {[%emt 0:04:22]} (22... Qc5 23. Red1) 23. Red1 {[%emt 0:03:26]} Bc8 {[%emt 0:02:05]} (23... Qc7 $16) 24. Bg5 $18 {[%emt 0:02:31]} Rg8 {[%emt 0:01:15]} 25. Rac1 {[%emt 0:03:10]} Rxc1 {[%emt 0:00:46]} 26. Qxc1 {[%emt 0:01:35][%cal Oa4a5] [#]} (26. Rxc1 axb5 27. Bxb5+ Bd7 $18) 26... Bd7 {[%emt 0:01:47][%cal Ra6b5]} 27. Bf6 {[%emt 0:05:38][%cal Oa4a5]} (27. a5 Qc7 $16 (27... Qxa5 $2 28. Qxc5 Rxg5 29. Rxd4 $18)) 27... axb5 {[%emt 0:00:13]} 28. axb5 {[%emt 0:01:37]} (28. a5 Qc6 29. g3 b4 $17) 28... Be7 $2 {[%emt 0:02:21]} (28... Bxb5 $2 {is the wrong capture.} 29. Bxb5+ Qxb5 30. Rxd4 $18) (28... Rg6 {keeps fighting.} 29. Qc4 Qc7 30. Rxd4 Qc8) 29. Bxe7 {[%emt 0:00:25] White is clearly winning.} Kxe7 {[%emt 0:00:01]} 30. Qa3+ {[%emt 0:00:07]} Kd8 {[%emt 0:00:28]} 31. Rc1 {[%emt 0:01:41]} Re8 {[%emt 0:01:46]} 32. h4 {[%emt 0:02:10]} Bc8 {[%emt 0:00:15]} 33. Qg3 {[%emt 0:01:07]} Ke7 {[%emt 0:01:05][%cal Bd8e7,Be7f8,Bf8g8][%mdl 32]} 34. Qg5+ {[%emt 0:01:08]} Kf8 {[%emt 0:00:08]} 35. Qh6+ {[%emt 0:00:52]} Kg8 {[%emt 0:00:07]} 36. Rd1 {[%emt 0:00:35][%cal Od1d3] Hoping for Rd3!.} Qd8 {[%emt 0:01:29]} 37. Rd3 {[%emt 0:00:24]} f4 {[%emt 0:00:06] Prevents Rg3+.} 38. Qxf4 {[%emt 0:00:15] Weighted Error Value: White=0.07 (flawless) /Black=0.54  Mistake:       	---       	Black=4      Inaccurate:     	White=4     	Black=2      OK:         	White=9     	Black=9      Best:        	White=1     	---        Brilliant:      	White=1     	---} 1-0